fUSD/lending_fUSD_20241203
["ID","MTS","AMOUNT","RATE_DAILY","PERIOD"]
[344047366,1733246413719,-500.0,0.00025547,120]
[344047367,1733246413766,-658.09,0.00025547,120]
[344047368,1733246413813,-500.64,0.00025547,120]
[344047369,1733246413863,-500.0,0.00025547,120]
[344047370,1733246413920,-1250.2,0.00025547,120]
[344047371,1733246413968,-1159.12,0.00025547,120]
[344047372,1733246414016,-895.49,0.00025547,120]
[344047373,1733246414064,-619.42,0.00025547,120]
[344047374,1733246414113,-500.0,0.00025547,120]
[344047375,1733246414164,-501.52,0.00025547,120]
[344047376,1733246414220,-500.0,0.00025547,120]
[344047377,1733246414272,-1620.27,0.00025547,120]
[344047378,1733246414321,-1567.85,0.00025547,120]
[344047379,1733246414376,-537.78,0.00025547,120]
[344047380,1733246414426,-1199.89,0.00025547,120]
[344047381,1733246414478,-586.95,0.00025547,120]
[344047382,1733246414525,-500.0,0.00025547,120]
[344047383,1733246414574,-500.0,0.00025547,120]
[344047384,1733246414619,-500.0,0.00025547,120]
[344047385,1733246414665,-500.0,0.00025547,120]
[344047386,1733246414972,-500.0,0.00025547,120]
[344047387,1733246415021,-500.0,0.00025547,120]
[344047388,1733246415069,-500.0,0.00025547,120]
[344047389,1733246415118,-500.0,0.00025547,120]
[344047390,1733246415168,-500.0,0.00025547,120]
[344047391,1733246415227,-500.0,0.00025547,120]
[344047392,1733246415277,-500.0,0.00025547,120]
[344047393,1733246415325,-913.66,0.00025547,120]
[344047394,1733246415380,-500.0,0.00025547,120]
[344047395,1733246415436,-640.92,0.00025547,120]
[344047396,1733246415487,-500.0,0.00025547,120]
[344047397,1733246415536,-500.0,0.00025547,120]
[344047398,1733246415585,-500.0,0.00025547,120]
[344047399,1733246415632,-1088.27,0.00025547,120]
[344047400,1733246415680,-500.0,0.00025547,120]
[344047401,1733246415727,-500.0,0.00025547,120]
[344047402,1733246415773,-759.76,0.00025547,120]
[344047403,1733246415820,-687.1,0.00025547,120]
[344047404,1733246415868,-500.0,0.00025547,120]
[344047405,1733246415913,-500.0,0.00025547,120]
[344047406,1733246415960,-500.0,0.00025547,120]
[344047407,1733246416004,-521.89379704,0.00025547,120]
[344047408,1733246416048,-616.18,0.00025547,120]
[344047409,1733246416093,-500.0,0.00025547,120]
[344047410,1733246416139,-1067.59,0.00025547,120]
[344047411,1733246416193,-500.0,0.00025547,120]
[344047412,1733246416240,-500.0,0.00025547,120]
[344047413,1733246416287,-500.0,0.00025547,120]
[344047414,1733246416332,-968.88,0.00025547,120]
[344047415,1733246416378,-912.87,0.00025547,120]
[344047416,1733246416424,-500.0,0.00025547,120]
[344047417,1733246416472,-500.0,0.00025547,120]
[344047418,1733246416517,-595.27,0.00025547,120]
[344047419,1733246416564,-1065.93,0.00025547,120]
[344047420,1733246416609,-514.75601108,0.00025547,120]
[344047421,1733246416655,-1172.97,0.00025547,120]
[344047422,1733246416699,-1328.5,0.00025547,120]
[344047423,1733246416744,-500.0,0.00025547,120]
[344047424,1733246416789,-500.0,0.00025547,120]
[344047425,1733246416834,-500.0,0.00025547,120]
[344047426,1733246416878,-500.0,0.00025547,120]
[344047427,1733246416923,-581.2,0.00025547,120]
[344047428,1733246416976,-500.0,0.00025547,120]
[344047429,1733246417020,-2214.54,0.00025547,120]
[344047430,1733246417065,-500.0,0.00025547,120]
[344047431,1733246417109,-700.0,0.00025547,120]
[344047432,1733246417153,-500.0,0.00025547,120]
[344047433,1733246417198,-524.63,0.00025547,120]
[344047434,1733246417241,-500.0,0.00025547,120]
[344047435,1733246417285,-1166.44,0.00025547,120]
[344047436,1733246417327,-500.0,0.00025547,120]
[344047437,1733246417370,-500.0,0.00025547,120]
[344047438,1733246417412,-2907.2,0.00025547,120]
[344047439,1733246417457,-500.0,0.00025547,120]
[344047440,1733246417505,-1573.71,0.00025547,120]
[344047441,1733246417551,-500.0,0.00025547,120]
[344047442,1733246417595,-984.46,0.00025547,120]
[344047443,1733246417642,-766.88,0.00025547,120]
[344047444,1733246417693,-610.44,0.00025547,120]
[344047445,1733246417747,-500.0,0.00025547,120]
[344047446,1733246417797,-1119.29,0.00025547,120]
[344047447,1733246417843,-1738.2,0.00025547,120]
[344047448,1733246417888,-500.0,0.00025547,120]
[344047449,1733246417937,-500.0,0.00025547,120]
[344047450,1733246417983,-968.26,0.00025547,120]
[344047451,1733246418030,-500.0,0.00025547,120]
[344047452,1733246418076,-500.0,0.00025547,120]
[344047453,1733246418122,-500.0,0.00025547,120]
[344047454,1733246418169,-500.0,0.00025547,120]
[344047455,1733246418223,-500.0,0.00025547,120]
[344047456,1733246418272,-500.0,0.00025547,120]
[344047457,1733246418323,-657.41,0.00025547,120]
[344047458,1733246418374,-500.0,0.00025547,120]
[344047459,1733246418422,-3036.77,0.00025547,120]
[344047460,1733246418474,-500.0,0.00025547,120]
[344047461,1733246418520,-500.0,0.00025547,120]
[344047462,1733246418568,-1098.3,0.00025547,60]
[344047463,1733246418613,-500.0,0.00025547,120]
[344047464,1733246418659,-500.0,0.00025547,120]
[344047465,1733246418705,-1269.11,0.00025547,120]
[344047466,1733246418748,-1576.97,0.00025547,120]
[344047467,1733246418791,-500.0,0.00025547,120]
[344047468,1733246418834,-1001.92,0.00025547,120]
[344047469,1733246418880,-531.41,0.00025547,120]
[344047470,1733246418927,-1168.12,0.00025547,120]
[344047471,1733246418977,-892.74,0.00025547,120]
[344047472,1733246419025,-500.0,0.00025547,120]
[344047473,1733246419076,-1046.07,0.00025547,120]
[344047474,1733246419123,-500.0,0.00025547,120]
[344047475,1733246419170,-977.95,0.00025547,120]
[344047476,1733246419218,-500.0,0.00025547,120]
[344047477,1733246419266,-1056.42,0.00025547,120]
[344047478,1733246419313,-500.0,0.00025547,120]
[344047479,1733246419359,-500.0,0.00025547,120]
[344047480,1733246419719,-500.0,0.00025547,120]
[344047481,1733246419764,-500.0,0.00025547,120]
[344047482,1733246419808,-1532.17,0.00025547,120]
[344047483,1733246419851,-500.0,0.00025547,120]
[344047484,1733246419897,-500.0,0.00025547,120]
[344047485,1733246419943,-500.0,0.00025547,120]
[344047486,1733246419986,-1082.12,0.00025547,120]
[344047487,1733246420027,-656.37,0.00025547,120]
[344047488,1733246420074,-500.0,0.00025547,120]
[344047489,1733246420116,-500.0,0.00025547,120]
[344047490,1733246420158,-500.0,0.00025547,120]
[344047491,1733246420200,-1147.0,0.00025547,120]
[344047492,1733246420248,-517.62,0.00025547,120]
[344047493,1733246420291,-500.0,0.00025547,120]
[344047494,1733246420335,-500.0,0.00025547,120]
[344047495,1733246420378,-500.0,0.00025547,120]
[344047496,1733246420423,-500.0,0.00025547,120]
[344047497,1733246420472,-826.59,0.00025547,120]
[344047498,1733246420517,-500.0,0.00025547,120]
[344047499,1733246420563,-711.9,0.00025547,120]
[344047500,1733246420608,-1104.52,0.00025547,120]
[344047501,1733246420652,-500.0,0.00025547,120]
[344047502,1733246420695,-500.0,0.00025547,120]
[344047503,1733246420739,-786.04,0.00025547,120]
[344047504,1733246420783,-546.23,0.00025547,120]
[344047505,1733246420827,-500.0,0.00025547,120]
[344047506,1733246420873,-500.0,0.00025547,120]
[344047507,1733246420919,-1161.29,0.00025547,120]
[344047508,1733246420965,-929.6,0.00025547,120]
[344047509,1733246421008,-2145.87,0.00025547,120]
[344047510,1733246421050,-500.0,0.00025547,120]
[344047511,1733246421094,-734.94,0.00025547,120]
[344047512,1733246421139,-1206.09,0.00025547,120]
[344047513,1733246421184,-500.0,0.00025547,120]
[344047514,1733246421230,-500.0,0.00025547,120]
[344047515,1733246421274,-1408.92,0.00025547,120]
[344047516,1733246421319,-607.90782789,0.00025547,120]
[344047517,1733246421362,-995.4,0.00025547,120]
[344047518,1733246421406,-500.0,0.00025547,120]
[344047519,1733246421450,-937.3,0.00025547,120]
[344047520,1733246421494,-1197.81,0.00025547,120]
[344047521,1733246421539,-500.0,0.00025547,120]
[344047522,1733246421583,-911.03,0.00025547,120]
[344047523,1733246421627,-566.13,0.00025547,120]
[344047524,1733246421670,-229.47147639,0.00025547,120]
[344047525,1733246421714,-500.0,0.00025547,120]
[344047526,1733246421757,-2095.87,0.00025547,120]
[344047527,1733246421802,-500.0,0.00025547,120]
[344047528,1733246421847,-586.32,0.00025547,120]
[344047529,1733246421895,-248.3778361,0.00025547,120]
[344047530,1733246421942,-500.0,0.00025547,120]
[344047531,1733246421988,-500.0,0.00025547,120]
[344047532,1733246422033,-1203.53,0.00025547,120]
[344047533,1733246422078,-879.25,0.00025547,120]
[344047534,1733246422123,-500.0,0.00025547,120]
[344047535,1733246422168,-500.0,0.00025547,120]
[344047536,1733246422215,-500.0,0.00025547,120]
[344047537,1733246422261,-500.0,0.00025547,120]
[344047538,1733246422311,-1189.15,0.00025547,120]
[344047539,1733246422360,-296.57719179,0.00025547,120]
[344047540,1733246422408,-841.7,0.00025547,120]
[344047541,1733246422453,-500.0,0.00025547,120]
[344047542,1733246422499,-1381.63,0.00025547,120]
[344047543,1733246422546,-500.0,0.00025547,120]
[344047544,1733246422592,-523.39016467,0.00025547,120]
[344047545,1733246422641,-4134.18,0.00025547,120]
[344047546,1733246422691,-769.58,0.00025547,120]
[344047547,1733246422741,-500.0,0.00025547,120]
[344047548,1733246422788,-1163.73,0.00025547,120]
[344047549,1733246422836,-1033.99,0.00025547,120]
[344047550,1733246422884,-500.0,0.00025547,120]
[344047551,1733246422931,-711.8,0.00025547,120]
[344047552,1733246422983,-500.0,0.00025547,120]
[344047553,1733246423031,-500.0,0.00025547,120]
[344047554,1733246423081,-500.0,0.00025547,120]
[344047555,1733246423129,-1440.43,0.00025547,120]
[344047556,1733246423178,-500.0,0.00025547,120]
[344047557,1733246423225,-500.0,0.00025547,120]
[344047558,1733246423273,-964.04,0.00025547,120]
[344047559,1733246423321,-956.97,0.00025547,120]
[344047560,1733246423370,-500.0,0.00025547,120]
[344047561,1733246423419,-500.0,0.00025547,120]
[344047562,1733246423468,-500.0,0.00025547,120]
[344047563,1733246423515,-1892.14,0.00025547,120]
[344047564,1733246423563,-2860.22,0.00025547,120]
[344047565,1733246423612,-1032.33,0.00025547,120]
[344047566,1733246423662,-1196.82,0.00025547,120]
[344047567,1733246423709,-986.17,0.00025547,120]
[344047568,1733246423757,-500.0,0.00025547,120]
[344047569,1733246423805,-1192.12,0.00025547,120]
[344047570,1733246423854,-565.71,0.00025547,120]
[344047571,1733246423902,-354.38165667,0.00025547,120]
[344047572,1733246423951,-1124.3,0.00025547,120]
[344047573,1733246424000,-500.0,0.00025547,120]
[344047574,1733246424048,-4430.69,0.00025547,120]
[344047575,1733246424373,-1043.3,0.00025547,120]
[344047576,1733246424420,-2334.8,0.00025547,120]
[344047577,1733246424471,-500.0,0.00025547,120]
[344047578,1733246424521,-500.0,0.00025547,120]
[344047579,1733246424571,-1119.9,0.00025547,120]
[344047580,1733246424618,-420.5965421,0.00025547,120]
[344047581,1733246424667,-1596.23,0.00025547,120]
[344047582,1733246424718,-714.04,0.00025547,120]
[344047583,1733246424768,-2640.16,0.00025547,120]
[344047584,1733246424816,-500.0,0.00025547,120]
[344047585,1733246424866,-1268.04,0.00025547,120]
[344047586,1733246424924,-500.0,0.00025547,120]
[344047587,1733246424978,-903.12,0.00025547,120]
[344047588,1733246425027,-500.0,0.00025547,120]
[344047589,1733246425075,-500.0,0.00025547,120]
[344047590,1733246425122,-873.59,0.00025547,120]
[344047591,1733246425169,-1040.74,0.00025547,120]
[344047592,1733246425218,-1862.08,0.00025547,120]
[344047593,1733246425266,-1386.44,0.00025547,120]
[344047594,1733246425315,-500.0,0.00025547,120]
[344047595,1733246425366,-2042.79,0.00025547,120]
[344047596,1733246425416,-500.0,0.00025547,120]
[344047597,1733246425470,-968.44,0.00025547,120]
[344047598,1733246425526,-1237.18,0.00025547,120]
[344047599,1733246425576,-500.0,0.00025547,120]
[344047600,1733246425622,-1457.62,0.00025547,120]
[344047601,1733246425668,-995.89,0.00025547,120]
[344047602,1733246425715,-500.0,0.00025547,120]
[344047603,1733246425763,-500.0,0.00025547,120]
[344047604,1733246425810,-2076.1,0.00025547,120]
[344047605,1733246425861,-500.0,0.00025547,120]
[344047606,1733246425913,-500.0,0.00025547,120]
[344047607,1733246425960,-967.71,0.00025547,120]
[344047608,1733246426006,-1517.53,0.00025547,120]
[344047609,1733246426054,-500.0,0.00025547,120]
[344047610,1733246426104,-500.0,0.00025547,120]
[344047611,1733246426152,-721.81,0.00025547,120]
[344047612,1733246426199,-500.0,0.00025547,120]
[344047613,1733246426260,-1554.28,0.00025547,120]
[344047614,1733246426309,-500.0,0.00025547,120]
[344047615,1733246426356,-1934.64,0.00025547,120]
[344047616,1733246426406,-1917.66,0.00025547,120]
[344047617,1733246426452,-500.0,0.00025547,120]
[344047618,1733246426503,-500.0,0.00025547,120]
[344047619,1733246426553,-1199.76,0.00025547,120]
[344047620,1733246426603,-1802.03,0.00025547,120]
[344047621,1733246426651,-2453.75,0.00025547,120]
[344047622,1733246426704,-868.95,0.00025547,120]
[344047623,1733246426756,-500.0,0.00025547,120]
[344047624,1733246426807,-746.75,0.00025547,120]
[344047625,1733246426859,-500.0,0.00025547,120]
[344047626,1733246426912,-500.0,0.00025547,120]
[344047627,1733246426960,-1270.46,0.00025547,120]
[344047628,1733246427008,-500.0,0.00025547,120]
[344047629,1733246427056,-500.0,0.00025547,120]
[344047630,1733246427104,-500.0,0.00025547,120]
[344047631,1733246427153,-1120.88,0.00025547,120]
[344047632,1733246427200,-500.0,0.00025547,120]
[344047633,1733246427258,-500.0,0.00025547,120]
[344047634,1733246427309,-500.0,0.00025547,120]
[344047635,1733246427358,-704.44,0.00025547,120]
[344047636,1733246427407,-500.0,0.00025547,120]
[344047637,1733246427455,-500.0,0.00025547,120]
[344047638,1733246427507,-1779.62,0.00025547,120]
[344047639,1733246427557,-500.0,0.00025547,120]
[344047640,1733246427606,-1089.52,0.00025547,120]
[344047641,1733246427653,-500.0,0.00025547,120]
[344047642,1733246427699,-704.69,0.00025547,120]
[344047643,1733246427747,-500.0,0.00025547,120]
[344047644,1733246427795,-1130.03,0.00025547,120]
[344047645,1733246427843,-686.85,0.00025547,120]
[344047646,1733246427892,-500.0,0.00025547,120]
[344047647,1733246427944,-1294.83,0.00025547,120]
[344047648,1733246427996,-4085.09,0.00025547,120]
[344047649,1733246428044,-500.0,0.00025547,120]
[344047650,1733246428093,-671.3,0.00025547,120]
[344047651,1733246428143,-500.0,0.00025547,120]
[344047652,1733246428194,-500.0,0.00025547,120]
[344047653,1733246428243,-2136.24,0.00025547,120]
[344047654,1733246428299,-389.18617754,0.00025547,120]
[344047655,1733246428351,-500.0,0.00025547,120]
[344047656,1733246428402,-500.0,0.00025547,120]
[344047657,1733246428454,-500.0,0.00025547,120]
[344047658,1733246428503,-765.68,0.00025547,120]
[344047659,1733246428553,-500.0,0.00025547,120]
[344047660,1733246428603,-500.0,0.00025547,120]
[344047661,1733246428653,-500.0,0.00025547,120]
[344047662,1733246428704,-1039.96,0.00025547,120]
[344047663,1733246428754,-1616.92,0.00025547,120]
[344047664,1733246428803,-500.0,0.00025547,120]
[344047665,1733246428853,-1080.5,0.00025547,120]
[344047666,1733246428909,-432.50077527,0.00025547,120]
[344047667,1733246428962,-2383.94,0.00025547,120]
[344047668,1733246429013,-1052.63,0.00025547,120]
[344047669,1733246429522,-500.0,0.00025547,120]
[344047670,1733246429572,-1730.26,0.00025547,120]
[344047671,1733246429621,-500.0,0.00025547,120]
[344047672,1733246429669,-500.0,0.00025547,120]
[344047673,1733246429718,-500.53,0.00025547,120]
[344047674,1733246429767,-1122.32,0.00025547,120]
[344047675,1733246429817,-500.0,0.00025547,120]
[344047676,1733246429870,-500.0,0.00025547,120]
[344047677,1733246429921,-2583.5,0.00025547,120]
[344047678,1733246429988,-500.0,0.00025547,120]
[344047679,1733246430038,-500.0,0.00025547,120]
[344047680,1733246430089,-500.0,0.00025547,120]
[344047681,1733246430140,-911.02,0.00025547,120]
[344047682,1733246430193,-1103.1,0.00025547,120]
[344047683,1733246430246,-1021.05,0.00025547,30]
[344047684,1733246430303,-2366.1,0.00025547,120]
[344047685,1733246430357,-500.0,0.00025547,120]
[344047686,1733246430412,-3118.78,0.00025547,120]
[344047687,1733246430465,-631.97,0.00025547,120]
[344047688,1733246430514,-1165.4,0.00025547,120]
[344047689,1733246430565,-601.06,0.00025547,120]
[344047690,1733246430617,-500.0,0.00025547,120]
[344047691,1733246430666,-500.0,0.00025547,120]
[344047692,1733246430717,-1441.14,0.00025547,120]
[344047693,1733246430766,-603.33,0.00025547,120]
[344047694,1733246430817,-500.0,0.00025547,120]
[344047695,1733246430870,-500.0,0.00025547,120]
[344047696,1733246430925,-500.0,0.00025547,120]
[344047697,1733246430979,-500.0,0.00025547,120]
[344047698,1733246431033,-500.0,0.00025547,120]
[344047699,1733246431083,-1010.34,0.00025547,120]
[344047700,1733246431133,-500.0,0.00025547,120]
[344047701,1733246431183,-662.38,0.00025547,120]
[344047702,1733246431237,-500.0,0.00025547,120]
[344047703,1733246431287,-500.0,0.00025547,120]
[344047704,1733246431339,-5730.49,0.00025547,120]
[344047705,1733246431392,-583.44,0.00025547,120]
[344047706,1733246431445,-1243.02,0.00025547,120]
[344047707,1733246431497,-337.99603219,0.00025547,120]
[344047708,1733246431548,-912.68,0.00025547,120]
[344047709,1733246431597,-740.36,0.00025547,120]
[344047710,1733246431646,-500.0,0.00025547,120]
[344047711,1733246431697,-500.0,0.00025547,120]
[344047712,1733246431745,-1367.67,0.00025547,120]
[344047713,1733246431795,-1805.69,0.00025547,120]
[344047714,1733246431844,-1197.8,0.00025547,120]
[344047715,1733246431894,-500.0,0.00025547,120]
[344047716,1733246431946,-500.0,0.00025547,120]
[344047717,1733246431998,-500.0,0.00025547,120]
[344047718,1733246432048,-649.17,0.00025547,120]
[344047719,1733246432095,-500.0,0.00025547,120]
[344047720,1733246432144,-500.0,0.00025547,120]
[344047721,1733246432194,-1834.27,0.00025547,120]
[344047722,1733246432244,-1046.06,0.00025547,120]
[344047723,1733246432299,-500.0,0.00025547,120]
[344047724,1733246432351,-1685.63,0.00025547,120]
[344047725,1733246432400,-500.0,0.00025547,120]
[344047726,1733246432451,-500.0,0.00025547,120]
[344047727,1733246432502,-1052.8,0.00025547,120]
[344047728,1733246432550,-2004.19,0.00025547,120]
[344047729,1733246432598,-724.32,0.00025547,120]
[344047730,1733246432647,-625.6578254,0.00025547,120]
[344047731,1733246432697,-566.15,0.00025547,120]
[344047732,1733246432747,-562.64,0.00025547,120]
[344047733,1733246432794,-1476.0,0.00025547,120]
[344047734,1733246432840,-500.0,0.00025547,120]
[344047735,1733246432886,-2578.73,0.00025547,120]
[344047736,1733246432932,-500.0,0.00025547,120]
[344047737,1733246432983,-2372.0,0.00025547,120]
[344047738,1733246433031,-500.0,0.00025547,120]
[344047739,1733246433080,-500.0,0.00025547,120]
[344047740,1733246433129,-1428.17,0.00025547,120]
[344047741,1733246433180,-500.0,0.00025547,120]
[344047742,1733246433234,-594.59,0.00025547,30]
[344047743,1733246433284,-500.0,0.00025547,120]
[344047744,1733246433332,-500.0,0.00025547,120]
[344047745,1733246433383,-2195.87,0.00025547,120]
[344047746,1733246433434,-1367.25,0.00025547,120]
[344047747,1733246433486,-1134.81,0.00025547,120]
[344047748,1733246433536,-500.0,0.00025547,120]
[344047749,1733246433586,-500.0,0.00025547,120]
[344047750,1733246433634,-806.94,0.00025547,120]
[344047751,1733246433684,-776.79,0.00025547,120]
[344047752,1733246433733,-500.0,0.00025547,120]
[344047753,1733246433780,-1493.12,0.00025547,120]
[344047754,1733246433832,-500.0,0.00025547,120]
[344047755,1733246433882,-1348.93,0.00025547,120]
[344047756,1733246433928,-500.0,0.00025547,120]
[344047757,1733246433977,-500.0,0.00025547,120]
[344047758,1733246434024,-2024.09,0.00025547,120]
[344047759,1733246434072,-500.0,0.00025547,120]
[344047760,1733246434123,-500.0,0.00025547,120]
[344047761,1733246434173,-1164.16,0.00025547,120]
[344047762,1733246434222,-1036.55,0.00025547,120]
[344047763,1733246434273,-500.0,0.00025547,120]
[344047764,1733246434677,-1340.97,0.00025547,120]
[344047765,1733246434733,-1587.69,0.00025547,120]
[344047766,1733246434783,-500.0,0.00025547,120]
[344047767,1733246434829,-500.0,0.00025547,120]
[344047768,1733246434876,-560.73139296,0.00025547,120]
[344047769,1733246434922,-691.12,0.00025547,120]
[344047770,1733246434975,-1148.63,0.00025547,120]
[344047771,1733246435023,-2483.96,0.00025547,120]
[344047772,1733246435070,-500.0,0.00025547,120]
[344047773,1733246435118,-932.01,0.00025547,120]
[344047774,1733246435167,-1415.65,0.00025547,120]
[344047775,1733246435215,-1100.23,0.00025547,120]
[344047776,1733246435262,-4415.58,0.00025547,120]
[344047777,1733246435309,-1158.04,0.00025547,120]
[344047778,1733246435356,-500.0,0.00025547,120]
[344047779,1733246435401,-500.0,0.00025547,120]
[344047780,1733246435449,-500.0,0.00025547,120]
[344047781,1733246435496,-1863.46,0.00025547,120]
[344047782,1733246435543,-555.72047494,0.00025547,120]
[344047783,1733246435589,-2006.93,0.00025547,120]
[344047784,1733246435634,-500.0,0.00025547,120]
[344047785,1733246435679,-576.98,0.00025547,120]
[344047786,1733246435725,-512.02,0.00025547,120]
[344047787,1733246435771,-626.88,0.00025547,120]
[344047788,1733246435813,-841.46,0.00025547,120]
[344047789,1733246435857,-500.0,0.00025547,120]
[344047790,1733246435905,-934.65,0.00025547,120]
[344047791,1733246435954,-713.37,0.00025547,120]
[344047792,1733246436002,-1364.74,0.00025547,120]
[344047793,1733246436047,-2752.08,0.00025547,120]
[344047794,1733246436094,-500.0,0.00025547,120]
[344047795,1733246436142,-4536.75,0.00025547,120]
[344047796,1733246436187,-500.0,0.00025547,120]
[344047797,1733246436236,-3415.18,0.00025547,120]
[344047798,1733246436282,-500.0,0.00025547,120]
[344047799,1733246436326,-3198.59,0.00025547,120]
[344047800,1733246436370,-500.0,0.00025547,120]
[344047801,1733246436414,-810.96,0.00025547,120]
[344047802,1733246436459,-1173.18,0.00025547,120]
[344047803,1733246436504,-987.23,0.00025547,120]
[344047804,1733246436550,-1015.28,0.00025547,120]
[344047805,1733246436596,-4003.87,0.00025547,120]
[344047806,1733246436643,-500.0,0.00025547,120]
[344047807,1733246436689,-1445.94,0.00025547,120]
[344047808,1733246436737,-4399.3,0.00025547,120]
[344047809,1733246436782,-1286.7,0.00025547,120]
[344047810,1733246436832,-723.52,0.00025547,120]
[344047811,1733246436879,-500.0,0.00025547,120]
[344047812,1733246436926,-2199.59,0.00025547,120]
[344047813,1733246436971,-500.0,0.00025547,120]
[344047814,1733246437016,-4043.06,0.00025547,120]
[344047815,1733246437062,-540.12,0.00025547,120]
[344047816,1733246437108,-500.0,0.00025547,120]
[344047817,1733246437154,-500.0,0.00025547,120]
[344047818,1733246437202,-500.0,0.00025547,120]
[344047819,1733246437250,-988.8,0.00025547,120]
[344047820,1733246437296,-3104.61,0.00025547,120]
[344047821,1733246437344,-500.0,0.00025547,120]
[344047822,1733246437389,-1287.7,0.00025547,120]
[344047823,1733246437436,-1289.84,0.00025547,120]
[344047824,1733246437483,-500.0,0.00025547,120]
[344047825,1733246437528,-1326.15,0.00025547,120]
[344047826,1733246437574,-1031.36,0.00025547,120]
[344047827,1733246437620,-1503.32,0.00025547,120]
[344047828,1733246437666,-500.0,0.00025547,120]
[344047829,1733246437710,-500.0,0.00025547,120]
[344047830,1733246437755,-1473.57,0.00025547,120]
[344047831,1733246437800,-1076.98,0.00025547,120]
[344047832,1733246437845,-300.0,0.00025547,120]
[344047833,1733246437890,-1098.01,0.00025547,120]
[344047834,1733246437935,-500.0,0.00025547,120]
[344047835,1733246437985,-1038.77,0.00025547,120]
[344047836,1733246438032,-1516.93,0.00025547,120]
[344047837,1733246438081,-500.0,0.00025547,120]
[344047838,1733246438128,-500.0,0.00025547,120]
[344047839,1733246438174,-1041.72,0.00025547,120]
[344047840,1733246438218,-554.1,0.00025547,120]
[344047841,1733246438264,-1145.92,0.00025547,120]
[344047842,1733246438311,-500.0,0.00025547,120]
[344047843,1733246438358,-500.0,0.00025547,120]
[344047844,1733246438406,-903.89,0.00025547,120]
[344047845,1733246438452,-1732.34,0.00025547,120]
[344047846,1733246438497,-500.0,0.00025547,120]
[344047847,1733246438545,-1707.71,0.00025547,120]
[344047848,1733246438590,-500.0,0.00025547,120]
[344047849,1733246438636,-500.0,0.00025547,120]
[344047850,1733246438681,-500.0,0.00025547,120]
[344047851,1733246438728,-1271.71,0.00025547,120]
[344047852,1733246438771,-500.0,0.00025547,120]
[344047853,1733246438816,-1072.5,0.00025547,120]
[344047854,1733246438861,-2914.29,0.00025547,120]
[344047855,1733246438905,-500.0,0.00025547,120]
[344047856,1733246438954,-1201.64,0.00025547,120]
[344047857,1733246438997,-500.0,0.00025547,120]
[344047858,1733246439332,-500.0,0.00025547,120]
[344047859,1733246439382,-1366.43,0.00025547,120]
[344047860,1733246439430,-500.0,0.00025547,120]
[344047861,1733246439479,-677.2,0.00025547,120]
[344047862,1733246439527,-1149.0,0.00025547,120]
[344047863,1733246439576,-500.0,0.00025547,120]
[344047864,1733246439626,-1808.01,0.00025547,120]
[344047865,1733246439675,-898.11,0.00025547,120]